fUST/lending_fUST_20240524
["ID","MTS","AMOUNT","RATE_DAILY","PERIOD"]
[327863036,1716563447670,-265.59880496,0.00025753,6]
[327863037,1716563447679,-151.0,0.00025753,2]
[327863038,1716563447689,-1391.49,0.00025753,6]
[327863039,1716563447698,-478.44852067,0.00025753,6]
[327863040,1716563447709,-500.0,0.00025753,6]
[327863041,1716563447719,-632.22,0.00025753,6]
[327863042,1716563447728,-662.16,0.00025753,6]
[327863043,1716563447738,-802.15,0.00025753,6]
[327863044,1716563447750,-500.0,0.00026027,7]
[327863045,1716563447761,-500.0,0.00026027,7]
[327863046,1716563447770,-500.0,0.00026027,7]
[327863047,1716563447781,-180.834296,0.00026027,2]
[327863048,1716563447791,-180.834296,0.00026027,2]
[327863049,1716563447801,-250.0,0.00026027,7]
[327863050,1716563447811,-500.0,0.00026027,7]
[327863051,1716563447821,-670.2,0.00026027,7]
[327863052,1716563447831,-151.0,0.00026027,2]
[327863053,1716563447841,-500.0,0.00026027,7]
[327863054,1716563447851,-500.0,0.00026027,7]
[327863055,1716563447861,-151.0,0.00026027,2]
[327863056,1716563447871,-627.46,0.00026027,7]
[327863057,1716563447881,-500.0,0.00026027,7]
[327863058,1716563447891,-197.458805,0.00026027,2]
[327863059,1716563447901,-500.0,0.00026027,7]
[327863060,1716563447911,-197.458805,0.00026027,2]
[327863061,1716563447921,-500.0,0.00026027,7]
[327863062,1716563447932,-500.0,0.00026027,7]
[327863063,1716563447943,-500.0,0.00026027,7]
[327863064,1716563447958,-316.115715,0.00026027,2]
[327863065,1716563447968,-831.85,0.00026027,7]
[327863066,1716563447978,-316.115715,0.00026027,2]
[327863067,1716563447991,-535.47,0.00026027,7]
[327863068,1716563448005,-902.77,0.00026027,7]
[327863069,1716563448016,-500.0,0.00026027,7]
[327863070,1716563448026,-151.0,0.00026027,2]
[327863071,1716563448036,-500.0,0.00026027,7]
[327863072,1716563448046,-500.0,0.00026027,7]
[327863073,1716563448055,-151.0,0.00026027,2]
[327863074,1716563448065,-500.0,0.00026027,7]
[327863075,1716563448074,-151.0,0.00026027,2]
[327863076,1716563448084,-500.0,0.00026027,7]
[327863077,1716563448093,-297.054959,0.00026027,2]
[327863078,1716563448102,-1003.69,0.00026027,7]
[327863079,1716563448112,-615.12,0.00026027,7]
[327863080,1716563448121,-297.054959,0.00026027,2]
[327863081,1716563448131,-151.0,0.00026027,2]
[327863082,1716563448140,-500.0,0.00026027,7]
[327863083,1716563448149,-1029.36,0.00026027,7]
[327863084,1716563448159,-913.62,0.00026027,7]
[327863085,1716563448168,-1050.38,0.00026027,7]
[327863086,1716563448177,-1319.31,0.00026027,7]
[327863087,1716563448186,-500.0,0.00026027,7]
[327863088,1716563448196,-500.0,0.00026027,7]
[327863089,1716563448206,-500.0,0.00026027,7]
[327863090,1716563448216,-1025.28,0.00026027,7]
[327863091,1716563448230,-562.25,0.00026027,7]
[327863092,1716563448240,-1352.42,0.00026027,7]
[327863093,1716563448250,-151.0,0.00026027,2]
[327863094,1716563448260,-151.0,0.00026027,2]
[327863095,1716563448269,-178.714804,0.00026027,2]
[327863096,1716563448278,-1741.98,0.00026027,7]
[327863097,1716563448288,-500.0,0.00026027,7]
[327863098,1716563448297,-758.1,0.00026027,7]
[327863099,1716563448309,-151.0,0.00026027,2]
[327863100,1716563448319,-224.05660685,0.00026027,7]
[327863101,1716563448328,-553.66,0.00026027,7]
[327863102,1716563448338,-488.255513,0.00026027,2]
[327863103,1716563448347,-500.0,0.00026027,7]
[327863104,1716563448357,-184.294571,0.00026027,2]
[327863105,1716563448367,-488.255513,0.00026027,2]
[327863106,1716563448376,-500.0,0.00026027,7]
[327863107,1716563448386,-500.0,0.00026027,7]
[327863108,1716563448395,-151.0,0.00026027,2]
[327863109,1716563448405,-605.03,0.00026027,7]
[327863110,1716563448415,-500.0,0.00026027,7]
[327863111,1716563448425,-500.0,0.00026027,7]
[327863112,1716563448434,-807.7,0.00026027,7]
[327863113,1716563448444,-500.0,0.00026027,7]
[327863114,1716563448454,-500.0,0.00026027,7]
[327863115,1716563448464,-1167.23,0.00026027,7]
[327863116,1716563448474,-500.0,0.00026027,7]
[327863117,1716563448483,-500.0,0.00026027,7]
[327863118,1716563448492,-1266.99,0.00026027,7]
[327863119,1716563448504,-151.0,0.00026027,2]
[327863120,1716563448513,-1109.82,0.00026027,7]
[327863121,1716563448522,-151.0,0.00026027,2]
[327863122,1716563448673,-4811.81,0.00026027,7]
[327863123,1716563448685,-1914.36,0.00026027,7]
[327863124,1716563448695,-500.0,0.00026027,7]
[327863125,1716563448706,-500.0,0.00026027,7]
[327863126,1716563448715,-978.64,0.00026027,7]
[327863127,1716563448725,-500.0,0.00026027,7]
[327863128,1716563448734,-554.51,0.00026027,7]
[327863129,1716563448746,-6588.38,0.00026027,7]
[327863130,1716563448755,-1834.66,0.00026027,7]
[327863131,1716563448765,-151.0,0.00026027,2]
[327863132,1716563448774,-928.42,0.00026027,7]
[327863133,1716563448784,-207.784917,0.00026027,2]
[327863134,1716563448794,-500.0,0.00026027,7]
[327863135,1716563448805,-500.0,0.00026027,7]
[327863136,1716563448815,-1335.47,0.00026027,7]
[327863137,1716563448825,-3728.77,0.00026027,7]
[327863138,1716563448835,-151.0,0.00026027,2]
[327863139,1716563448844,-500.0,0.00026027,7]
[327863140,1716563448854,-500.0,0.00026027,7]
[327863141,1716563448864,-533.33,0.00026027,7]
[327863142,1716563448874,-500.0,0.00026027,7]
[327863143,1716563448884,-288.415256,0.00026027,2]
[327863144,1716563448894,-288.415256,0.00026027,2]
[327863145,1716563448903,-747.37,0.00026027,7]
[327863146,1716563448913,-500.0,0.00026027,7]
[327863147,1716563448922,-500.0,0.00026027,7]
[327863148,1716563448931,-500.0,0.00026027,7]
[327863149,1716563448942,-500.0,0.00026027,7]
[327863150,1716563448952,-3668.68,0.00026027,7]
[327863151,1716563448963,-1198.07,0.00026027,7]
[327863152,1716563448972,-151.0,0.00026027,2]
[327863153,1716563448981,-584.847069,0.00026027,2]
[327863154,1716563448991,-151.0,0.00026027,2]
[327863155,1716563449003,-151.0,0.00026027,2]
[327863156,1716563449013,-584.847069,0.00026027,2]
[327863157,1716563449023,-220.18273684,0.00026027,7]
[327863158,1716563449034,-526.6,0.00026027,7]
[327863159,1716563449043,-1464.19,0.00026027,7]
[327863160,1716563449053,-1164.05,0.00026027,7]
[327863161,1716563449063,-614.2,0.00026027,7]
[327863162,1716563449073,-500.0,0.00026027,7]
[327863163,1716563449083,-10703.05,0.00026027,7]
[327863164,1716563449092,-151.0,0.00026027,2]
[327863165,1716563449102,-1606.02,0.00026027,7]
[327863166,1716563449111,-897.89,0.00026027,7]
[327863167,1716563449122,-500.0,0.00026027,7]
[327863168,1716563449132,-500.0,0.00026027,7]
[327863169,1716563449142,-151.0,0.00026027,2]
[327863170,1716563449151,-3249.69,0.00026027,7]
[327863171,1716563449161,-151.0,0.00026027,2]
[327863172,1716563449170,-151.0,0.00026027,2]
[327863173,1716563449180,-555.458354,0.00026027,2]
[327863174,1716563449190,-555.458354,0.00026027,2]
[327863175,1716563449200,-500.0,0.00026027,7]
[327863176,1716563449211,-1564.26,0.00026027,7]
[327863177,1716563449226,-500.0,0.00026027,7]
[327863178,1716563449236,-1473.95,0.00026027,7]
[327863179,1716563449246,-12628.55,0.00026027,7]
[327863180,1716563449256,-151.0,0.00026027,2]
[327863181,1716563449266,-688.242876,0.00026027,2]
[327863182,1716563449276,-959.82,0.00026027,7]
[327863183,1716563449287,-2131.58,0.00026027,7]
[327863184,1716563449296,-519.32,0.00026027,7]
[327863185,1716563449309,-688.242876,0.00026027,2]
[327863186,1716563449319,-500.0,0.00026027,7]
[327863187,1716563449329,-500.0,0.00026027,7]
[327863188,1716563449339,-1391.49,0.00026027,7]
[327863189,1716563449349,-500.0,0.00026027,7]
[327863190,1716563449358,-632.22,0.00026027,7]
[327863191,1716563449368,-662.16,0.00026027,7]
[327863192,1716563449378,-802.15,0.00026027,7]
[327863193,1716563449387,-286.6627749,0.00026083,2]
[327863194,1716563449397,-373.1924512,0.0002611,2]
[327863195,1716563449407,-291.6248309,0.0002611,2]
[327863196,1716563449416,-583.2496618,0.0002611,2]
[327863197,1716563449425,-291.6248309,0.0002611,2]
[327863198,1716563449435,-583.2496618,0.0002611,2]
[327863199,1716563449444,-291.6248309,0.0002611,2]
[327863200,1716563449454,-583.2496618,0.0002611,2]
[327863201,1716563449464,-291.6248309,0.0002611,2]
[327863202,1716563449474,-291.6248309,0.0002611,2]
[327863203,1716563449484,-291.6248309,0.0002611,2]
[327863204,1716563449493,-291.6248309,0.0002611,2]
[327863205,1716563449504,-291.6248309,0.0002611,2]
[327863206,1716563449514,-291.6248309,0.0002611,2]
[327863207,1716563449524,-291.6248309,0.0002611,2]
[327863208,1716563449533,-291.6248309,0.0002611,2]
[327863210,1716563449543,-291.6248309,0.0002611,2]
[327863211,1716563449552,-291.6248309,0.0002611,2]
[327863213,1716563449563,-151.0,0.0002611,2]
[327863214,1716563449574,-631.62946036,0.0002612,2]
[327863215,1716563449583,-1000.0,0.00026162,2]
[327863216,1716563449593,-150.0,0.00026165,2]
[327863217,1716563449603,-291.6248309,0.00026192,2]
[327863218,1716563449612,-583.2496618,0.00026192,2]
[327863219,1716563449624,-291.6248309,0.00026192,2]
[327863220,1716563449634,-1000.0,0.00026194,2]
[327863221,1716563449643,-713.3372251,0.00026203,2]
[327863222,1716563449653,-713.3372251,0.00026209,2]
[327863223,1716563449663,-272.2251714,0.00026236,2]
[327863224,1716563449672,-1000.0,0.00026268,2]
[327863225,1716563449682,-151.0,0.00026301,2]
[327863226,1716563449694,-151.0,0.00026301,2]
[327863227,1716563449704,-151.0,0.00026301,2]
[327863228,1716563449714,-500.0,0.00026301,8]
[327863229,1716563449724,-500.0,0.00026301,8]
[327863230,1716563449733,-500.0,0.00026301,8]
[327863231,1716563449743,-151.0,0.00026301,2]
[327863232,1716563449754,-151.0,0.00026301,2]
[327863233,1716563449764,-151.0,0.00026301,2]
[327863234,1716563449775,-151.0,0.00026301,2]
[327863235,1716563449785,-250.0,0.00026301,8]
[327863236,1716563449795,-500.0,0.00026301,8]
[327863237,1716563449805,-670.2,0.00026301,8]
[327863238,1716563449814,-500.0,0.00026301,8]
[327863239,1716563449824,-500.0,0.00026301,8]
[327863240,1716563449833,-627.46,0.00026301,8]
[327863241,1716563449843,-500.0,0.00026301,8]
[327863242,1716563449853,-500.0,0.00026301,8]
[327863243,1716563449863,-500.0,0.00026301,8]
[327863244,1716563449873,-500.0,0.00026301,8]
[327863245,1716563449882,-500.0,0.00026301,8]
[327863246,1716563449892,-831.85,0.00026301,8]
[327863247,1716563449902,-535.47,0.00026301,8]
[327863248,1716563449911,-902.77,0.00026301,8]
[327863249,1716563449922,-500.0,0.00026301,8]
[327863250,1716563449932,-151.0,0.00026301,2]
[327863251,1716563449942,-500.0,0.00026301,8]
[327863252,1716563449952,-500.0,0.00026301,8]
[327863253,1716563449961,-151.0,0.00026301,2]
[327863254,1716563449970,-500.0,0.00026301,8]
[327863255,1716563449980,-151.0,0.00026301,2]
[327863256,1716563449990,-500.0,0.00026301,8]
[327863257,1716563450001,-1003.69,0.00026301,8]
[327863258,1716563450010,-297.054959,0.00026301,2]
[327863259,1716563450019,-615.12,0.00026301,8]
[327863260,1716563450028,-297.054959,0.00026301,2]
[327863261,1716563450037,-151.767467,0.00026301,2]
[327863262,1716563450047,-500.0,0.00026301,8]
[327863263,1716563450056,-1029.36,0.00026301,8]
[327863264,1716563450065,-913.62,0.00026301,8]
[327863265,1716563450075,-1050.38,0.00026301,8]
[327863266,1716563450084,-1319.31,0.00026301,8]
[327863268,1716563450094,-500.0,0.00026301,8]
[327863270,1716563450104,-500.0,0.00026301,8]
[327863272,1716563450114,-500.0,0.00026301,8]
[327863274,1716563450123,-1025.28,0.00026301,8]
[327863276,1716563450133,-562.25,0.00026301,8]
[327863278,1716563450142,-1352.42,0.00026301,8]
[327863280,1716563450152,-151.0,0.00026301,2]
[327863281,1716563450162,-151.0,0.00026301,2]
[327863282,1716563450171,-1741.98,0.00026301,8]
[327863283,1716563450181,-500.0,0.00026301,8]
[327863284,1716563450191,-758.1,0.00026301,8]
[327863285,1716563450201,-553.66,0.00026301,8]
[327863286,1716563450211,-151.0,0.00026301,2]
[327863287,1716563450221,-488.255513,0.00026301,2]
[327863288,1716563450233,-335.81662484,0.00026301,8]
[327863289,1716563450243,-488.255513,0.00026301,2]
[327863290,1716563450254,-500.0,0.00026301,8]
[327863291,1716563450263,-500.0,0.00026301,8]
[327863292,1716563450273,-151.0,0.00026301,2]
[327863293,1716563450283,-605.03,0.00026301,8]
[327863294,1716563450293,-500.0,0.00026301,8]
[327863295,1716563450302,-500.0,0.00026301,8]
[327863296,1716563450314,-807.7,0.00026301,8]
[327863297,1716563450324,-500.0,0.00026301,8]
[327863298,1716563450334,-500.0,0.00026301,8]
[327863299,1716563450344,-1167.23,0.00026301,8]
[327863300,1716563450353,-500.0,0.00026301,8]
[327863301,1716563450363,-500.0,0.00026301,8]
[327863302,1716563450372,-1266.99,0.00026301,8]
[327863303,1716563450382,-151.0,0.00026301,2]
[327863304,1716563450391,-1109.82,0.00026301,8]
[327863305,1716563450400,-151.0,0.00026301,2]
[327863306,1716563450410,-4811.81,0.00026301,8]
[327863307,1716563450420,-1914.36,0.00026301,8]
[327863308,1716563450430,-500.0,0.00026301,8]
[327863309,1716563450440,-500.0,0.00026301,8]
[327863310,1716563450450,-978.64,0.00026301,8]
[327863311,1716563450459,-500.0,0.00026301,8]
[327863312,1716563450470,-554.51,0.00026301,8]
[327863313,1716563450479,-6588.38,0.00026301,8]
[327863314,1716563450488,-1834.66,0.00026301,8]
[327863315,1716563450500,-151.0,0.00026301,2]
[327863316,1716563450510,-928.42,0.00026301,8]
[327863317,1716563450519,-500.0,0.00026301,8]
[327863318,1716563450528,-500.0,0.00026301,8]
[327863319,1716563450538,-1335.47,0.00026301,8]
[327863320,1716563450548,-3728.77,0.00026301,8]
[327863321,1716563450557,-500.0,0.00026301,8]
[327863322,1716563450566,-500.0,0.00026301,8]
[327863323,1716563450576,-533.33,0.00026301,8]
[327863324,1716563450585,-500.0,0.00026301,8]
[327863325,1716563450595,-288.415256,0.00026301,2]
[327863326,1716563450605,-288.415256,0.00026301,2]
[327863327,1716563450614,-747.37,0.00026301,8]
[327863328,1716563450623,-500.0,0.00026301,8]
[327863329,1716563450633,-500.0,0.00026301,8]
[327863330,1716563450643,-500.0,0.00026301,8]
[327863331,1716563450653,-500.0,0.00026301,8]
[327863332,1716563450662,-3668.68,0.00026301,8]
[327863333,1716563450672,-1198.07,0.00026301,8]
[327863334,1716563450681,-151.0,0.00026301,2]
[327863335,1716563450691,-584.847069,0.00026301,2]
[327863336,1716563450701,-151.0,0.00026301,2]
[327863337,1716563450711,-151.0,0.00026301,2]
[327863338,1716563450720,-584.847069,0.00026301,2]
[327863339,1716563450730,-526.6,0.00026301,8]
[327863340,1716563450739,-1464.19,0.00026301,8]
[327863341,1716563450749,-1164.05,0.00026301,8]
[327863342,1716563450759,-614.2,0.00026301,8]
[327863343,1716563450768,-243.4891551,0.00026301,8]
[327863344,1716563450777,-10703.05,0.00026301,8]
[327863345,1716563450788,-151.0,0.00026301,2]
[327863346,1716563450797,-1606.02,0.00026301,8]
[327863347,1716563450806,-897.89,0.00026301,8]
[327863348,1716563450815,-500.0,0.00026301,8]
[327863349,1716563450824,-500.0,0.00026301,8]
[327863350,1716563450834,-151.0,0.00026301,2]
[327863351,1716563450843,-3249.69,0.00026301,8]
[327863352,1716563450852,-151.0,0.00026301,2]
[327863353,1716563450862,-237.351224,0.00026301,2]
[327863354,1716563450872,-555.458354,0.00026301,2]
[327863355,1716563450883,-555.458354,0.00026301,2]
[327863356,1716563450892,-500.0,0.00026301,8]
[327863357,1716563450903,-1564.26,0.00026301,8]
[327863358,1716563450912,-500.0,0.00026301,8]
[327863359,1716563450922,-1473.95,0.00026301,8]
[327863360,1716563450932,-12628.55,0.00026301,8]
[327863361,1716563450942,-151.0,0.00026301,2]
[327863362,1716563450952,-959.82,0.00026301,8]
[327863363,1716563450962,-688.242876,0.00026301,2]
[327863364,1716563450972,-2131.58,0.00026301,8]
[327863365,1716563450981,-519.32,0.00026301,8]
[327863366,1716563450991,-688.242876,0.00026301,2]
[327863367,1716563451003,-500.0,0.00026301,7]
[327863368,1716563451012,-500.0,0.00026301,8]
[327863369,1716563451022,-1391.49,0.00026301,8]
[327863370,1716563451031,-500.0,0.00026301,8]
[327863371,1716563451041,-632.22,0.00026301,8]
[327863372,1716563451051,-662.16,0.00026301,8]
[327863373,1716563451060,-802.15,0.00026301,8]
[327863374,1716563451070,-291.6248309,0.00026301,2]
[327863375,1716563451079,-1000.0,0.00026311,2]
[327863376,1716563451089,-1000.0,0.00026329,2]
[327863377,1716563451099,-151.0,0.00026329,2]
[327863378,1716563451109,-286.6627749,0.00026331,2]
[327863379,1716563451119,-286.6627749,0.0002634,2]
[327863380,1716563451128,-1000.0,0.00026342,2]
[327863381,1716563451138,-1000.0,0.00026343,2]
[327863382,1716563451147,-1000.0,0.00026392,2]
[327863383,1716563451157,-419.099999,0.000264,2]
[327863384,1716563451167,-197.458805,0.000264,2]
[327863385,1716563451177,-197.458805,0.000264,2]
[327863386,1716563451187,-316.115715,0.000264,2]
[327863387,1716563451196,-316.115715,0.000264,2]
[327863388,1716563451205,-1000.0,0.00026432,2]
[327863389,1716563451310,-1000.0,0.00026448,2]
[327863390,1716563451332,-1025.29616208,0.00026455,2]
[327863391,1716563451342,-286.6627749,0.00026458,2]
[327863392,1716563451351,-204.6274004,0.00026466,2]
[327863393,1716563451360,-1000.0,0.00026497,2]
[327863394,1716563451370,-933.61054279,0.0002651,2]
[327863395,1716563451379,-1000.0,0.00026571,2]
[327863396,1716563451388,-157.898362,0.00026575,2]
[327863397,1716563451398,-500.0,0.00026575,9]
[327863398,1716563451407,-500.0,0.00026575,9]
[327863399,1716563451417,-500.0,0.00026575,9]
[327863400,1716563451427,-151.0,0.00026575,2]
[327863401,1716563451436,-151.0,0.00026575,2]
[327863402,1716563451445,-151.0,0.00026575,2]
[327863403,1716563451454,-152.077392,0.00026575,2]
[327863404,1716563451464,-180.834296,0.00026575,2]
[327863405,1716563451473,-180.834296,0.00026575,2]
[327863406,1716563451483,-250.0,0.00026575,9]
[327863407,1716563451492,-500.0,0.00026575,9]
[327863408,1716563451503,-670.2,0.00026575,9]
[327863409,1716563451512,-210.652485,0.00026575,2]
[327863410,1716563451522,-186.26335302,0.00026575,9]
[327863411,1716563451531,-500.0,0.00026575,9]
[327863412,1716563451540,-151.0,0.00026575,2]
[327863413,1716563451550,-627.46,0.00026575,9]
[327863414,1716563451559,-500.0,0.00026575,9]
[327863415,1716563451568,-500.0,0.00026575,9]
[327863416,1716563451577,-500.0,0.00026575,9]
[327863417,1716563451587,-500.0,0.00026575,9]
[327863418,1716563451596,-500.0,0.00026575,9]
[327863419,1716563451605,-831.85,0.00026575,9]
[327863420,1716563451615,-535.47,0.00026575,9]
[327863421,1716563451624,-902.77,0.00026575,9]
[327863422,1716563451633,-194.88120767,0.00026575,9]
[327863423,1716563451642,-500.0,0.00026575,9]
[327863424,1716563451652,-500.0,0.00026575,9]
[327863425,1716563451661,-500.0,0.00026575,9]
[327863426,1716563451670,-500.0,0.00026575,9]
[327863427,1716563451679,-1003.69,0.00026575,9]
[327863428,1716563451688,-615.12,0.00026575,9]
[327863429,1716563451698,-500.0,0.00026575,9]
[327863430,1716563451707,-1029.36,0.00026575,9]
[327863431,1716563451716,-913.62,0.00026575,9]
[327863432,1716563451726,-1050.38,0.00026575,9]
[327863433,1716563451735,-1319.31,0.00026575,9]
[327863434,1716563451744,-500.0,0.00026575,9]
[327863435,1716563451755,-500.0,0.00026575,9]
[327863436,1716563451764,-500.0,0.00026575,9]
[327863437,1716563451774,-1025.28,0.00026575,9]
[327863438,1716563451783,-562.25,0.00026575,9]
[327863439,1716563451792,-1352.42,0.00026575,9]
[327863440,1716563451801,-151.0,0.00026575,2]
[327863441,1716563451811,-1741.98,0.00026575,9]
[327863442,1716563451820,-500.0,0.00026575,9]
[327863443,1716563451830,-758.1,0.00026575,9]
[327863444,1716563451839,-553.66,0.00026575,9]
[327863445,1716563451850,-151.0,0.00026575,2]
[327863446,1716563451859,-488.255513,0.00026575,2]
[327863447,1716563451868,-488.255513,0.00026575,2]
[327863448,1716563451877,-500.0,0.00026575,9]
[327863449,1716563451887,-500.0,0.00026575,9]
[327863450,1716563451897,-151.0,0.00026575,2]
[327863451,1716563451906,-605.03,0.00026575,9]
[327863452,1716563451916,-500.0,0.00026575,9]
[327863453,1716563451925,-440.73,0.00026575,9]
[327863454,1716563451935,-807.7,0.00026575,9]
[327863455,1716563451944,-244.59407564,0.00026575,9]
[327863456,1716563451954,-500.0,0.00026575,9]
[327863457,1716563451963,-1167.23,0.00026575,9]
[327863458,1716563451972,-500.0,0.00026575,9]
[327863459,1716563451982,-500.0,0.00026575,9]
[327863460,1716563451991,-1266.99,0.00026575,9]
[327863461,1716563452000,-151.0,0.00026575,2]
[327863462,1716563452009,-1109.82,0.00026575,9]
[327863463,1716563452018,-286.055544,0.00026575,2]
[327863464,1716563452027,-4811.81,0.00026575,9]
[327863465,1716563452036,-1914.36,0.00026575,9]
[327863466,1716563452045,-500.0,0.00026575,9]
[327863467,1716563452056,-500.0,0.00026575,9]
[327863468,1716563452065,-978.64,0.00026575,9]
[327863469,1716563452075,-500.0,0.00026575,9]
[327863470,1716563452084,-554.51,0.00026575,9]
[327863471,1716563452094,-6588.38,0.00026575,9]
[327863472,1716563452103,-1834.66,0.00026575,9]
[327863473,1716563452114,-151.0,0.00026575,2]
[327863474,1716563452123,-928.42,0.00026575,9]
[327863475,1716563452132,-500.0,0.00026575,9]
[327863476,1716563452141,-500.0,0.00026575,9]
[327863477,1716563452150,-1335.47,0.00026575,9]
[327863478,1716563452159,-3728.77,0.00026575,9]
[327863479,1716563452168,-500.0,0.00026575,9]
[327863480,1716563452179,-500.0,0.00026575,9]
[327863481,1716563452188,-533.33,0.00026575,9]
[327863482,1716563452200,-500.0,0.00026575,9]
[327863483,1716563452210,-288.415256,0.00026575,2]
[327863484,1716563452221,-288.415256,0.00026575,2]
[327863485,1716563452232,-747.37,0.00026575,9]
[327863486,1716563452242,-500.0,0.00026575,9]
[327863487,1716563452253,-500.0,0.00026575,9]
[327863488,1716563452262,-501.52638297,0.00026575,9]
[327863489,1716563452272,-500.0,0.00026575,9]
[327863490,1716563452281,-3668.68,0.00026575,9]
[327863491,1716563452291,-1152.25237853,0.00026575,9]
[327863492,1716563452451,-45.81762147,0.00026575,9]
[327863493,1716563452461,-151.0,0.00026575,2]
[327863494,1716563452471,-584.847069,0.00026575,2]
[327863495,1716563452480,-124.68697053,0.00026575,2]
[327863496,1716563452492,-26.31302947,0.00026575,2]
[327863497,1716563452503,-251.069195,0.00026575,2]
[327863498,1716563452513,-386.06534978,0.00026575,2]
[327863499,1716563452881,-500.0,0.00024657,2]
[327863500,1716563452891,-500.0,0.00024657,2]
[327863501,1716563452900,-500.0,0.00024931,3]
[327863502,1716563452910,-500.0,0.00025205,4]
[327863503,1716563452919,-500.0,0.00025479,5]
[327863504,1716563452929,-771.62,0.00025753,6]
[327863505,1716563452938,-151.0,0.00025753,2]
[327863506,1716563452947,-500.0,0.00025753,6]
[327863507,1716563452957,-771.62,0.00026027,7]
[327863508,1716563452966,-151.0,0.0002611,2]
[327863509,1716563452977,-771.62,0.00026301,8]
[327863510,1716563452986,-151.0,0.00026329,2]
[327863511,1716563452996,-198.78171922,0.00026575,2]
[327863512,1716563453009,-526.6,0.00026575,9]
[327863513,1716563453018,-1464.19,0.00026575,9]
[327863514,1716563453029,-1164.05,0.00026575,9]
[327863515,1716563453038,-614.2,0.00026575,9]
[327863516,1716563453047,-10703.05,0.00026575,9]
[327863517,1716563453057,-151.0,0.00026575,2]
[327863518,1716563453066,-1606.02,0.00026575,9]
[327863519,1716563453075,-897.89,0.00026575,9]
[327863520,1716563453084,-500.0,0.00026575,9]
[327863521,1716563453094,-500.0,0.00026575,9]
[327863522,1716563453103,-151.0,0.00026575,2]
[327863523,1716563453112,-3249.69,0.00026575,9]
[327863524,1716563453122,-151.0,0.00026575,2]
[327863525,1716563453131,-555.458354,0.00026575,2]
[327863526,1716563453141,-555.458354,0.00026575,2]
[327863527,1716563453150,-500.0,0.00026575,9]
[327863528,1716563453160,-1564.26,0.00026575,9]
[327863529,1716563453169,-500.0,0.00026575,9]
[327863530,1716563453178,-12628.55,0.00026575,9]
[327863531,1716563453187,-1473.95,0.00026575,9]
[327863532,1716563453197,-959.82,0.00026575,9]
[327863533,1716563453206,-2131.58,0.00026575,9]
[327863534,1716563453217,-688.242876,0.00026575,2]
[327863535,1716563453226,-519.32,0.00026575,9]
[327863536,1716563453240,-688.242876,0.00026575,2]
[327863537,1716563453252,-500.0,0.00026575,7]
[327863538,1716563453261,-500.0,0.00026575,9]
[327863539,1716563453271,-1391.49,0.00026575,9]
[327863540,1716563453281,-500.0,0.00026575,9]
[327863541,1716563453290,-632.22,0.00026575,9]
[327863542,1716563453300,-662.16,0.00026575,9]
[327863543,1716563453310,-802.15,0.00026575,9]
[327863544,1716563453320,-771.62,0.00026575,9]